[Event "Prague Open 2024"]
[Site "Prague"]
[Date "2024.01.11"]
[Round "8.2"]
[White "Tobak, Mikhail"]
[Black "Keller, Peter"]
[Result "1/2-1/2"]
[ECO "C67"]
[WhiteElo "2288"]
[BlackElo "2289"]
[Annotator "RC"]
[PlyCount "97"]
[EventDate "2024.01.02"]
[EventType "swiss"]
[EventCountry "CZE"]
[SourceTitle "playchess.com"]
[Source "ChessBase"]
[SourceQuality "1"]
[TimeControl "40/5400+30:1800+30"]

1. e4 e5 2. Nf3 Nc6 3. Bb5 Nf6 4. O-O Nxe4 5. d4 Nd6 6. Bxc6 dxc6 7. dxe5 Nf5 8. Qxd8+ Kxd8 9. Nc3 Bd7 10. b3 b6 11. Bb2 Kc8 12. Rad1 Be7 13. Ne4 a5 14. a4 h6 15. g4 Nh4 16. Nxh4 Bxh4 17. f3 Be7 18. e6 Bxe6 19. Bxg7 Rg8 20. Bf6 Bxf6 21. Nxf6 Rg6 22. Nh5 b5 23. Nf4 Rf6 24. Nh5 Rg6 25. Nf4 Rf6 26. Nxe6 Rxe6 27. Rfe1 bxa4 28. Rxe6 fxe6 29. bxa4 Rb8 30. Re1 Kd7 31. Re5 Rb2 32. Rxa5 Rxc2 33. Rh5 c5 34. Kf1 c4 35. Ke1 c3 36. Kd1 Ra2 37. Rxh6 Kd6 38. Rh5 e5 39. g5 Rxa4 40. Kc2 Rf4 41. g6 Ke7 42. Rh7+ Kf8 43. h4 Rxf3 44. Rxc7 Rh3 45. Rh7 Rg3 46. h5 Kg8 47. Kb3 Rh3 48. Kc2 Rg3 49. Kb3 1/2-1/2

[Event "Prague Open 2024"]
[Site "Prague"]
[Date "2024.01.11"]
[Round "8.3"]
[White "Stanojevic, Ilija"]
[Black "Poetsch, Hagen"]
[Result "1/2-1/2"]
[ECO "D37"]
[WhiteElo "2206"]
[BlackElo "2471"]
[Annotator "TA"]
[PlyCount "95"]
[EventDate "2024.01.02"]
[EventType "swiss"]
[EventCountry "CZE"]
[SourceTitle "playchess.com"]
[Source "ChessBase"]
[SourceQuality "1"]
[TimeControl "40/5400+30:1800+30"]

{[%evp 9,95,23,52,48,39,41,33,34,39,41,41,42,37,30,31,43,36,46,50,31,35,41,40,34,29,0,0,0,0,0,0,0,0,0,0,0,73,27,110,67,130,87,81,75,74,55,72,70,83,0,0,0,0,0,0,0,0,0,0,0,0,0,0,0,0,0,0,-120,-103,-110,-113,-113,-116,-127,-67,-122,-122,-122,-122,-122,0,0,0,0,0,0,0,0]} 1. d4 Nf6 2. c4 e6 3. Nf3 d5 4. Nc3 dxc4 5. e4 {[%cal Be2e4,Be4e5][%mdl 32]} b5 6. e5 {D24: Queen's Gambit Accepted: 3 Nf3 Nf6 4 Nc3.} Nd5 7. Nxb5 Nb6 8. Be2 {White is slightly better.} Be7 9. O-O Nc6 10. Be3 O-O 11. Qc1 Ba6 12. Nc3 (12. Bxc4 Nxc4 13. Qxc4 Nb4 $15) 12... Nb4 13. Rd1 Rb8 14. a3 N4d5 15. b4 Nxc3 16. Qxc3 Bb5 $1 {[#]} 17. Nd2 $146 {[%cal Rd2c4]} ({Predecessor:} 17. Qc1 Qd7 18. Nd2 Qc6 19. Nb1 Qa8 20. Nc3 Bc6 21. f3 a5 22. Bg5 Bxg5 23. Qxg5 {1-0 Mareco,S (2624)-Galaviz Medina,S (2378) Mexican op 68th 2023 (3)}) 17... Nd5 18. Qc2 a5 19. bxa5 c3 20. Bxb5 Rxb5 21. Ne4 $1 Rb2 22. Qd3 Rb3 (22... Nxe3 $11 23. fxe3 Qd5) 23. Rdb1 (23. Bd2 $16) 23... Qb8 (23... Rxb1+ $11 {remains equal.} 24. Rxb1 c5) 24. Bc1 c5 25. Rxb3 (25. dxc5 $6 Rxb1 26. Rxb1 Qxe5 $11) 25... Qxb3 26. dxc5 ({Reject} 26. Nxc5 Bxc5 27. dxc5 Qa4 $11) 26... Qa4 27. Be3 (27. Nxc3 $2 {loses.} Nxc3 28. Bd2 Nd5 $19) 27... Qxa5 28. Bd4 $1 Rb8 29. Bxc3 (29. Nxc3 $16 Nxc3 30. Qxc3 (30. Bxc3 Qxc5 31. Qd2 Qxa3 $11) 30... Qxc3 {[%mdl 64] Remove Defender} 31. Bxc3) 29... Nxc3 $11 30. Qxc3 Qxc3 {[%mdl 64] Remove Defender} 31. Nxc3 {Strongly threatening Ne4.} Bxc5 $16 {[%mdl 4096] Endgame KRB-KRN} 32. Rb1 Ra8 33. Nb5 g5 34. Kf1 Ra4 35. Rc1 Bf8 36. Rc8 Kg7 37. Nd6 Rxa3 38. Ne4 (38. Rc7 $11) 38... Ra1+ $17 39. Ke2 Ra5 $1 40. Kf3 Rxe5 41. g4 {[#]} h5 42. Ng3 (42. gxh5 $15 g4+ {[%mdl 64] Discovered Attack} 43. Kf4 Rxh5 44. Kxg4 Rxh2 45. f4) 42... hxg4+ 43. Kxg4 Be7 44. Nh5+ {[#]} Kg6 (44... Kh7 $1 $17 {And now ...f5+ would win.} 45. Rc7 f5+ 46. Kg3 Kg6 47. Rxe7 Kxh5) 45. Rg8+ $11 {The position is equal.} Kh6 {White must now prevent ...f5+.} 46. Rh8+ Kg6 {Threatens to win with ...Re4+.} 47. Rg8+ Kh6 48. Rh8+ {Weighted Error Value: White=0.15 (very precise) /Black=0.15 (very precise)} 1/2-1/2

[Event "Prague Open 2024"]
[Site "Prague"]
[Date "2024.01.11"]
[Round "8.4"]
[White "Sowinski, Pawel"]
[Black "Mohylnyi, Stepan"]
[Result "1-0"]
[ECO "D80"]
[WhiteElo "2357"]
[BlackElo "2180"]
[Annotator "RC"]
[PlyCount "93"]
[EventDate "2024.01.02"]
[EventType "swiss"]
[EventCountry "CZE"]
[SourceTitle "playchess.com"]
[Source "ChessBase"]
[SourceQuality "1"]
[TimeControl "40/5400+30:1800+30"]

1. d4 {[%emt 0:00:01]} Nf6 {[%emt 0:00:08]} 2. c4 {[%emt 0:00:11]} g6 {[%emt 0:00:06]} 3. Nc3 {[%emt 0:00:03]} d5 {[%emt 0:00:13]} 4. e3 {[%emt 0:00:05]} Bg7 {[%emt 0:00:15]} 5. cxd5 {[%emt 0:00:04]} Nxd5 {[%emt 0:00:05]} 6. Nxd5 {[%emt 0:00:03]} Qxd5 {[%emt 0:00:04]} 7. Ne2 {[%emt 0:00:03]} O-O {[%emt 0:11:38]} 8. Nc3 {[%emt 0:00:02]} Qd8 {[%emt 0:00:22]} 9. Be2 {[%emt 0:00:04]} c6 {[%emt 0:02:40]} 10. O-O {[%emt 0:00:05]} e5 {[%emt 0:00:14]} 11. dxe5 {[%emt 0:00:05]} Qxd1 {[%emt 0:09:17]} 12. Rxd1 {[%emt 0:00:02]} Bxe5 {[%emt 0:00:01]} 13. e4 {[%emt 0:00:01]} Nd7 {[%emt 0:05:49]} 14. Be3 {[%emt 0:08:50]} Re8 {[%emt 0:05:04]} 15. f3 {[%emt 0:02:08]} Nb6 {[%emt 0:04:00]} 16. a4 {[%emt 0:24:42]} Be6 {[%emt 0:05:47]} 17. a5 {[%emt 0:05:01]} Nc4 {[%emt 0:02:51]} 18. Bxc4 {[%emt 0:00:23]} Bxc4 {[%emt 0:00:23]} 19. Rd7 {[%emt 0:01:06]} Bxc3 {[%emt 0:17:27]} 20. bxc3 {[%emt 0:00:03]} Ba6 {[%emt 0:00:57]} 21. Rad1 {[%emt 0:00:28]} b6 {[%emt 0:18:42]} 22. axb6 {[%emt 0:00:05]} axb6 {[%emt 0:00:02]} 23. Bxb6 {[%emt 0:00:08]} Bb5 {[%emt 0:04:13]} 24. R7d6 {[%emt 0:03:44]} Reb8 {[%emt 0:00:45]} 25. Bd4 {[%emt 0:01:12]} Rd8 {[%emt 0:03:27]} 26. Bf6 {[%emt 0:00:17]} Rxd6 {[%emt 0:00:05]} 27. Rxd6 {[%emt 0:00:03]} h6 {[%emt 0:00:28]} 28. h4 {[%emt 0:01:26]} Kf8 {[%emt 0:02:55]} 29. Rd7 {[%emt 0:00:53]} Re8 {[%emt 0:00:30]} 30. Rc7 {[%emt 0:00:11]} Re6 {[%emt 0:02:18]} 31. Rc8+ {[%emt 0:00:57]} Re8 {[%emt 0:00:02]} 32. Bg7+ {[%emt 0:00:14]} Ke7 {[%emt 0:00:08]} 33. Rxe8+ {[%emt 0:02:10]} Kxe8 {[%emt 0:00:00]} 34. Bxh6 {[%emt 0:00:02]} f5 {[%emt 0:02:27]} 35. exf5 {[%emt 0:00:31]} gxf5 {[%emt 0:00:01]} 36. Kf2 {[%emt 0:00:01]} Kf7 {[%emt 0:01:37]} 37. g4 {[%emt 0:00:30]} c5 {[%emt 0:01:52]} 38. Kg3 {[%emt 0:00:07]} fxg4 {[%emt 0:00:19]} 39. fxg4 {[%emt 0:00:05]} Be2 {[%emt 0:00:17]} 40. Be3 {[%emt 0:01:16]} c4 {[%emt 0:01:13]} 41. h5 {[%emt 0:33:03]} Bd3 {[%emt 0:31:16]} 42. g5 {[%emt 0:01:43]} Be4 {[%emt 0:00:00]} 43. g6+ {[%emt 0:00:00]} Kf6 {[%emt 0:00:00]} 44. Kf4 {[%emt 0:00:00]} Bd5 {[%emt 0:00:00]} 45. Bd4+ {[%emt 0:00:00]} Ke7 {[%emt 0:00:00]} 46. Kg5 {[%emt 0:00:00]} Bg8 {[%emt 0:00:00]} 47. h6 {[%emt 0:00:00]} 1-0

[Event "Prague Open 2024"]
[Site "Prague"]
[Date "2024.01.11"]
[Round "8.5"]
[White "Ivanov, Mike"]
[Black "Rakovsky, Jakub"]
[Result "1-0"]
[ECO "A06"]
[WhiteElo "2356"]
[BlackElo "2157"]
[Annotator "RC"]
[PlyCount "101"]
[EventDate "2024.01.02"]
[EventType "swiss"]
[EventCountry "CZE"]
[SourceTitle "playchess.com"]
[Source "ChessBase"]
[SourceQuality "1"]
[TimeControl "40/5400+30:1800+30"]

1. Nf3 {[%emt 0:00:03]} d5 {[%emt 0:00:45]} 2. g3 {[%emt 0:00:12]} Bg4 {[%emt 0:00:42]} 3. Bg2 {[%emt 0:00:20]} c6 {[%emt 0:00:42]} 4. h3 {[%emt 0:02:08]} Bxf3 {[%emt 0:00:35]} 5. Bxf3 {[%emt 0:00:42]} e5 {[%emt 0:00:19]} 6. d3 {[%emt 0:00:42]} Nf6 {[%emt 0:00:46]} 7. O-O {[%emt 0:03:19]} Be7 {[%emt 0:07:25]} 8. e4 {[%emt 0:01:29]} dxe4 {[%emt 0:05:02]} 9. dxe4 {[%emt 0:00:12]} O-O {[%emt 0:01:29]} 10. Nd2 {[%emt 0:05:32]} Nbd7 {[%emt 0:07:19]} 11. Nc4 {[%emt 0:02:57]} Qc7 {[%emt 0:07:22]} 12. Qe2 {[%emt 0:01:36]} Rfd8 {[%emt 0:03:00]} 13. Bd2 {[%emt 0:01:04]} Bc5 {[%emt 0:08:20]} 14. b4 {[%emt 0:03:44]} Bd4 {[%emt 0:07:43]} 15. c3 {[%emt 0:01:29]} Bb6 {[%emt 0:08:47]} 16. Rab1 {[%emt 0:12:12]} h6 {[%emt 0:10:00]} 17. Rb2 {[%emt 0:05:24]} Nf8 {[%emt 0:03:44]} 18. a4 {[%emt 0:03:30]} Qe7 {[%emt 0:01:33]} 19. a5 {[%emt 0:15:56]} Bc7 {[%emt 0:00:07]} 20. Be3 {[%emt 0:00:13]} Ne6 {[%emt 0:02:26]} 21. h4 {[%emt 0:01:45]} Nd7 {[%emt 0:04:20]} 22. Rd1 {[%emt 0:03:14]} b5 {[%emt 0:01:22]} 23. axb6 {[%emt 0:00:56]} axb6 {[%emt 0:00:49]} 24. Rbd2 {[%emt 0:00:45]} b5 {[%emt 0:04:12]} 25. Nd6 {[%emt 0:02:25]} Bxd6 {[%emt 0:02:15]} 26. Rxd6 {[%emt 0:00:08]} Nd4 {[%emt 0:01:36]} 27. R6xd4 {[%emt 0:01:37]} exd4 {[%emt 0:00:15]} 28. Bxd4 {[%emt 0:00:06]} Ne5 {[%emt 0:00:56]} 29. Bg2 {[%emt 0:00:47]} Qe6 {[%emt 0:00:33]} 30. Qh5 {[%emt 0:01:15]} Qg4 {[%emt 0:02:59]} 31. Qxg4 {[%emt 0:02:31]} Nxg4 {[%emt 0:00:07]} 32. Re1 {[%emt 0:00:16]} Nf6 {[%emt 0:01:54]} 33. e5 {[%emt 0:00:29]} Nd5 {[%emt 0:00:33]} 34. e6 {[%emt 0:00:25]} f6 {[%emt 0:05:07]} 35. Be4 {[%emt 0:07:32]} Ne7 {[%emt 0:01:49]} 36. Bc5 {[%emt 0:00:29]} Re8 {[%emt 0:00:42]} 37. Bxe7 {[%emt 0:00:51]} Rxe7 {[%emt 0:00:05]} 38. Bxc6 {[%emt 0:00:07]} Rc8 {[%emt 0:00:46]} 39. Bxb5 {[%emt 0:00:42]} Rxc3 {[%emt 0:00:31]} 40. Bd7 {[%emt 0:00:40]} Rc7 {[%emt 0:00:54]} 41. Rb1 {[%emt 0:44:04]} g6 {[%emt 0:05:49]} 42. b5 {[%emt 0:00:00]} Kf8 {[%emt 0:03:43]} 43. b6 {[%emt 0:00:00]} Rb7 {[%emt 0:00:12]} 44. Kg2 {[%emt 0:00:00]} Rg7 {[%emt 0:03:14]} 45. Kf3 {[%emt 0:00:00]} Ke7 {[%emt 0:02:20]} 46. Bc8 {[%emt 0:00:00]} Rb8 {[%emt 0:00:40]} 47. b7 {[%emt 0:00:00]} Rg8 {[%emt 0:04:50]} 48. Rc1 {[%emt 0:00:00]} Kd6 {[%emt 0:01:23]} 49. Ke4 {[%emt 0:00:00]} Re8 {[%emt 0:06:53]} 50. Rd1+ {[%emt 0:00:00]} Kc5 {[%emt 0:01:37]} 51. h5 {[%emt 0:00:00]} 1-0

[Event "Prague Open 2024"]
[Site "Prague"]
[Date "2024.01.11"]
[Round "8.6"]
[White "Eliseev, Sergey"]
[Black "Khandhar, Kaushal"]
[Result "1-0"]
[ECO "C18"]
[WhiteElo "2232"]
[BlackElo "1840"]
[Annotator "TA"]
[PlyCount "87"]
[EventDate "2024.01.02"]
[EventType "swiss"]
[EventCountry "CZE"]
[SourceTitle "playchess.com"]
[Source "ChessBase"]
[SourceQuality "1"]
[TimeControl "40/5400+30:1800+30"]

{[%evp 12,87,17,0,7,10,18,6,47,20,29,-12,0,0,0,0,185,189,200,101,99,36,72,54,60,97,128,117,112,124,188,183,187,179,197,208,290,297,348,336,352,322,399,385,392,375,356,303,282,267,385,381,356,345,336,335,335,335,344,347,456,456,456,455,466,472,465,472,1118,1145,1018,996,1241,1270,29989,4698,29979,931]} 1. e4 {[%emt 0:00:23]} e6 {[%emt 0:00:14]} 2. d4 {[%emt 0:00:08]} d5 {[%emt 0:00:08]} 3. Nc3 {[%emt 0:00:09]} Bb4 {[%emt 0:00:37]} 4. e5 {[%emt 0:00:29]} c5 {[%emt 0:00:23]} 5. a3 {[%emt 0:00:00]} Bxc3+ {[%emt 0:00:10]} 6. bxc3 {[%emt 0:00:02]} Nc6 {[%emt 0:00:17]} 7. h4 {[%emt 0:08:26]} Qa5 {[%emt 0:01:41]} 8. Bd2 {[%emt 0:00:23]} Bd7 {[%emt 0:00:45]} 9. Rb1 {[%emt 0:16:17]} Qa4 {[%emt 0:19:07] Die Stellung ist ausgeglichen.} 10. Bb5 {[%emt 0:09:29]} Qxa3 {[%emt 0:03:00]} 11. Qg4 {[%emt 0:21:18]} Qa2 {[%emt 0:08:39][%csl LRb1,LRc2]} 12. Rc1 {[%emt 0:00:00]} Nge7 {[%emt 0:02:45]} 13. Nf3 {[%emt 0:01:20]} c4 $2 {[%emt 0:12:33]} (13... Kf8 $11 {und Schwarz muss sich keine Sorgen machen.}) 14. Qxg7 $18 {[%emt 0:02:35]} O-O-O {[%emt 0:05:37]} 15. Bxc6 {[%emt 0:06:01]} ({Finger weg von} 15. Qxf7 $6 Rdf8 16. Qh5 h6 $16) ({Besser ist} 15. Ng5 $18) 15... Nxc6 $16 {[%emt 0:01:45] Schwarz hat schwache schwarze Felder} 16. Bg5 {[%emt 0:00:15]} (16. O-O $16) 16... Rdg8 17. Qxf7 {[%emt 0:02:29] Weiß steht aktiver.} Rf8 {[%emt 0:05:10]} 18. Qh5 {[%emt 0:02:27] Damit ist Schwarz auf der Verliererstraße.} Rf5 {[%emt 0:02:55][%cal Oh7h6] [#]} 19. Qh6 $1 {[%emt 0:02:09]} Qa3 {[%emt 0:01:08][%cal Of5f3]} 20. Kd2 {[%emt 0:00:32]} Qf8 {[%emt 0:02:38] Pariert Bf6.} (20... Na5 $16) 21. Qxf8+ $18 {[%emt 0:00:24]} Rhxf8 {[%emt 0:00:23]} 22. Ke3 {[%emt 0:03:02]} h5 {[%emt 0:04:05]} 23. Bf6 {[%emt 0:00:32]} Nd8 {[%emt 0:06:32]} 24. Ng5 {[%emt 0:01:24]} Nf7 {[%emt 0:02:15]} 25. Nxf7 {[%emt 0:00:01]} Rxf7 {[%emt 0:00:17]} 26. f3 {[%emt 0:01:13]} Be8 {[%emt 0:03:38]} 27. g4 {[%emt 0:00:53]} R5xf6 {[%emt 0:00:19]} 28. exf6 {[%emt 0:00:02]} Rxf6 {[%emt 0:00:06]} 29. gxh5 {[%emt 0:02:15]} Bxh5 {[%emt 0:00:10][%mdl 4096] Endspiel. KRR-KRB} 30. f4 {[%emt 0:02:31] Droht stark Rcg1.} a5 {[%emt 0:01:54]} (30... Kd7 {war angesagt.} 31. Ra1 a6) 31. Rcg1 {[%emt 0:03:59]} Kc7 {[%emt 0:03:36]} 32. Rg7+ {[%emt 0:01:01]} Kc6 {[%emt 0:00:15]} 33. Rh7 {[%emt 0:00:11]} Bg4 {[%emt 0:01:19]} 34. Rh8 {[%emt 0:03:51] [#] Wehrt Rf8 ab. Droht h5 und aus.} Bf5 {[%emt 0:00:42]} 35. Rh2 {[%emt 0:02:58]} Rg6 {[%emt 0:01:45]} 36. h5 {[%emt 0:00:33]} Rg3+ {[%emt 0:00:24]} 37. Kd2 {[%emt 0:00:15] Und h6 würde nun gewinnen.} a4 {[%emt 0:01:13][%cal Ba5a4,Ba4a3][%mdl 32]} 38. h6 {[%emt 0:00:21]} a3 {[%emt 0:00:41]} 39. Ra8 {[%emt 0:00:22][%cal Oh6h7] Zielt auf h7! ab.} b5 {[%emt 0:00:16]} (39... Bh7 $142 40. Rxa3 Rf3) 40. h7 {[%emt 0:00:59]} Bxh7 {[%emt 0:00:11]} 41. Rxh7 {[%emt 0:30:01][%cal Ra8a6]} Rg2+ {[%emt 0:30:11]} 42. Ke1 {[%emt 0:02:23][%cal Ra8a6]} b4 {[%emt 0:01:42]} 43. cxb4 {[%emt 0:00:01]} (43. Ra6+ $142 Kb5 44. Rxe6 (44. Rha7 b3 $18) 44... Rxc2 45. Rb7+ Ka4 46. Rxb4+ (46. cxb4 Kb3 $18) 46... Ka5 47. Rbb6 Ka4 48. Rb8) 43... Rxc2 {[%emt 0:00:33]} 44. Rxa3 {[%emt 0:00:08] Gewichteter Fehlerwert: Weiß=0.11 (sehr präzise) /Schwarz=0.52.  Verlustzug:     	---       	Schwarz=1     Fehler:       	Weiß=2     	Schwarz=3     Ungenau:       	Weiß=2     	Schwarz=5     OK:         	Weiß=15    	Schwarz=8     Bester:       	Weiß=2     	Schwarz=3     Stark:        	Weiß=1     	---} (44. Rb8 $142 Rb2 45. Ra7 Rb1+ 46. Kd2 Rb2+ 47. Kc1 Rb3 48. b5+ Rxb5 49. Ra6+ Kd7 50. Rxb5) 1-0

[Event "Prague Open 2024"]
[Site "Prague"]
[Date "2024.01.11"]
[Round "8.7"]
[White "Shagbazyan, Taron"]
[Black "Koridze, Lile"]
[Result "1-0"]
[ECO "E49"]
[WhiteElo "2403"]
[BlackElo "2152"]
[Annotator "RC"]
[PlyCount "57"]
[EventDate "2024.01.02"]
[EventType "swiss"]
[EventCountry "CZE"]
[SourceTitle "playchess.com"]
[Source "ChessBase"]
[SourceQuality "1"]
[TimeControl "40/5400+30:1800+30"]

1. d4 Nf6 2. c4 e6 3. Nc3 Bb4 4. e3 O-O 5. Bd3 d5 6. a3 Bxc3+ 7. bxc3 c5 8. cxd5 exd5 9. Ne2 b6 10. O-O Bb7 11. f3 Nc6 12. Ng3 Re8 13. Qc2 cxd4 14. cxd4 Rc8 15. Qf2 Na5 16. Rb1 Rc3 17. Rd1 Qc8 18. Bb2 Rc7 19. Nf5 Re6 20. Qg3 Ne8 21. e4 dxe4 22. fxe4 Bxe4 23. Bxe4 Rxe4 24. Qf3 Qb7 25. d5 Rcc4 26. Re1 Rxe1+ 27. Rxe1 Qd7 28. Re7 Qb5 29. Nh6+ 1-0

[Event "Prague Open 2024"]
[Site "Prague"]
[Date "2024.01.11"]
[Round "8.8"]
[White "Sindler, Michal"]
[Black "Neuman, Petr"]
[Result "1/2-1/2"]
[ECO "B28"]
[WhiteElo "2158"]
[BlackElo "2398"]
[Annotator "RC"]
[PlyCount "93"]
[EventDate "2024.01.02"]
[EventType "swiss"]
[EventCountry "CZE"]
[SourceTitle "playchess.com"]
[Source "ChessBase"]
[SourceQuality "1"]
[TimeControl "40/5400+30:1800+30"]

1. e4 c5 2. Nf3 a6 3. g3 Nc6 4. Bg2 Nf6 5. d3 d6 6. O-O g6 7. Re1 Bg7 8. h3 O-O 9. c3 e5 10. Be3 Re8 11. Nbd2 b6 12. d4 exd4 13. cxd4 Bb7 14. dxc5 dxc5 15. Nc4 Nxe4 16. Qxd8 Raxd8 17. Nxb6 Nb4 18. Rad1 Nc2 19. Rxd8 Rxd8 20. Re2 Nxe3 21. Rxe3 Rd1+ 22. Kh2 f5 23. Re2 Bc6 24. Nd2 Bb5 25. Ndc4 Bd4 26. Bf3 Rc1 27. b3 Bxf2 28. a4 Bc6 29. Rxf2 Nxf2 30. Bxc6 Rc2 31. Bg2 Nd3 32. Kg1 Nc1 33. Bb7 Nxb3 34. Bxa6 Kg7 35. Bb7 Ra2 36. h4 h6 37. Bd5 Nd4 38. Bg2 Ne2+ 39. Kh2 f4 40. gxf4 Nxf4 41. Ne3 g5 42. hxg5 hxg5 43. Kg1 g4 44. Bf1 Nh3+ 45. Kh1 Nf2+ 46. Kg1 Nh3+ 47. Kh1 1/2-1/2

[Event "Prague Open 2024"]
[Site "Prague"]
[Date "2024.01.11"]
[Round "8.9"]
[White "Wang, Yukun"]
[Black "Gomes, Mary Ann"]
[Result "1-0"]
[ECO "B90"]
[WhiteElo "2117"]
[BlackElo "2332"]
[Annotator "RC"]
[PlyCount "93"]
[EventDate "2024.01.02"]
[EventType "swiss"]
[EventCountry "CZE"]
[SourceTitle "playchess.com"]
[Source "ChessBase"]
[SourceQuality "1"]
[TimeControl "40/5400+30:1800+30"]

1. e4 {[%emt 0:00:08]} c5 {[%emt 0:00:13]} 2. Nf3 {[%emt 0:00:10]} d6 {[%emt 0:00:10]} 3. d4 {[%emt 0:00:14]} cxd4 {[%emt 0:00:08]} 4. Nxd4 {[%emt 0:00:03]} Nf6 {[%emt 0:00:08]} 5. Nc3 {[%emt 0:00:03]} a6 {[%emt 0:00:06]} 6. Be3 {[%emt 0:00:11]} e5 {[%emt 0:00:07]} 7. Nb3 {[%emt 0:00:03]} Be6 {[%emt 0:00:06]} 8. f3 {[%emt 0:00:04]} Nbd7 {[%emt 0:00:06]} 9. Qd2 {[%emt 0:00:20]} b5 {[%emt 0:00:07]} 10. g4 {[%emt 0:00:08]} Nb6 {[%emt 0:00:06]} 11. g5 {[%emt 0:01:10]} Nfd7 {[%emt 0:00:05]} 12. Na5 {[%emt 0:02:22]} Rc8 {[%emt 0:01:19]} 13. a4 {[%emt 0:06:18]} Nc4 {[%emt 0:14:34]} 14. Nxc4 {[%emt 0:00:22]} bxc4 {[%emt 0:00:58]} 15. Nd5 {[%emt 0:03:24]} Bxd5 {[%emt 0:12:58]} 16. Qxd5 {[%emt 0:06:27]} Be7 {[%emt 0:00:07]} 17. Bxc4 {[%emt 0:02:17]} O-O {[%emt 0:00:08]} 18. h4 {[%emt 0:09:19]} Nb6 {[%emt 0:00:25]} 19. Bxb6 {[%emt 0:00:02]} Qxb6 {[%emt 0:00:07]} 20. O-O-O {[%emt 0:00:17]} Rc5 {[%emt 0:11:21]} 21. Qd3 {[%emt 0:00:08]} Rb8 {[%emt 0:00:06]} 22. b3 {[%emt 0:06:51]} Qb4 {[%emt 0:01:10]} 23. c3 {[%emt 0:10:18]} Qa3+ {[%emt 0:13:43]} 24. Kd2 {[%emt 0:00:18]} d5 {[%emt 0:05:23]} 25. exd5 {[%emt 0:01:07]} Rxb3 {[%emt 0:00:13]} 26. Bxb3 {[%emt 0:03:10]} Qxb3 {[%emt 0:00:07]} 27. c4 {[%emt 0:01:52]} Qxa4 {[%emt 0:03:30]} 28. Rc1 {[%emt 0:04:37]} Rc8 {[%emt 0:02:25]} 29. Ke2 {[%emt 0:00:47]} Bc5 {[%emt 0:00:41]} 30. Ra1 {[%emt 0:03:01]} Qd7 {[%emt 0:00:06]} 31. Rxa6 {[%emt 0:01:19]} Bd4 {[%emt 0:00:08]} 32. Kf1 {[%emt 0:04:13]} Rb8 {[%emt 0:04:55]} 33. Ra2 {[%emt 0:00:31]} Rf8 {[%emt 0:10:45]} 34. Kg2 {[%emt 0:03:09]} Qc8 {[%emt 0:01:21]} 35. Re1 {[%emt 0:03:14]} f6 {[%emt 0:01:23]} 36. f4 {[%emt 0:06:29]} Qg4+ {[%emt 0:00:55]} 37. Qg3 {[%emt 0:00:10]} Qc8 {[%emt 0:00:55]} 38. Rc2 {[%emt 0:06:58]} Qf5 {[%emt 0:00:08]} 39. Rd2 {[%emt 0:02:14]} Kh8 {[%emt 0:04:59]} 40. Rd3 {[%emt 0:14:51]} Qc8 {[%emt 0:08:26]} 41. gxf6 {[%emt 0:16:45]} gxf6 {[%emt 0:01:45]} 42. fxe5 {[%emt 0:01:00]} Qxc4 {[%emt 0:09:06]} 43. e6 {[%emt 0:03:20]} Qxd5+ {[%emt 0:01:08]} 44. Qf3 {[%emt 0:00:11]} Rg8+ {[%emt 0:04:28]} 45. Kh3 {[%emt 0:00:17]} Qc5 {[%emt 0:03:54]} 46. Qf4 {[%emt 0:05:16]} Qc6 {[%emt 0:04:06]} 47. Qe4 {[%emt 0:01:11]} 1-0

[Event "Prague Open 2024"]
[Site "Prague"]
[Date "2024.01.11"]
[Round "8.10"]
[White "Trapl, Dalibor"]
[Black "Berin, Artem"]
[Result "1-0"]
[ECO "C70"]
[WhiteElo "2108"]
[BlackElo "2327"]
[Annotator "RC"]
[PlyCount "67"]
[EventDate "2024.01.02"]
[EventType "swiss"]
[EventCountry "CZE"]
[SourceTitle "playchess.com"]
[Source "ChessBase"]
[SourceQuality "1"]
[TimeControl "40/5400+30:1800+30"]

1. e4 {[%emt 0:00:04]} e5 {[%emt 0:00:13]} 2. Nf3 {[%emt 0:00:15]} Nc6 {[%emt 0:00:07]} 3. Bb5 {[%emt 0:00:16]} a6 {[%emt 0:00:06]} 4. Ba4 {[%emt 0:00:20]} b5 {[%emt 0:00:06]} 5. Bb3 {[%emt 0:00:18]} Na5 {[%emt 0:00:05]} 6. O-O {[%emt 0:08:54]} d6 {[%emt 0:00:07]} 7. d4 {[%emt 0:15:29]} exd4 {[%emt 0:00:06]} 8. Nxd4 {[%emt 0:00:10]} Bb7 {[%emt 0:00:55]} 9. Nf5 {[%emt 0:02:18]} Nxb3 {[%emt 0:03:35]} 10. axb3 {[%emt 0:00:09]} g6 {[%emt 0:00:43]} 11. Ng3 {[%emt 0:02:25]} Bg7 {[%emt 0:00:38]} 12. Nc3 {[%emt 0:00:13]} Nf6 {[%emt 0:03:10]} 13. Nd5 {[%emt 0:05:19]} c6 {[%emt 0:06:34]} 14. Nxf6+ {[%emt 0:00:53]} Qxf6 {[%emt 0:00:06]} 15. e5 {[%emt 0:05:08]} dxe5 {[%emt 0:15:19]} 16. Ne4 {[%emt 0:00:15]} Qe7 {[%emt 0:00:04]} 17. Be3 {[%emt 0:08:44]} O-O {[%emt 0:07:33]} 18. Bc5 {[%emt 0:00:16]} Qh4 {[%emt 0:00:09]} 19. Bxf8 {[%emt 0:00:28]} Bxf8 {[%emt 0:00:05]} 20. Qg4 {[%emt 0:05:03]} Qe7 {[%emt 0:05:29]} 21. Qd7 {[%emt 0:04:30]} f5 {[%emt 0:01:16]} 22. Nc5 {[%emt 0:02:18]} Qxd7 {[%emt 0:11:22]} 23. Nxd7 {[%emt 0:00:05]} Bg7 {[%emt 0:00:08]} 24. Nc5 {[%emt 0:00:43]} Bc8 {[%emt 0:01:11]} 25. Rfd1 {[%emt 0:03:18]} Bf6 {[%emt 0:09:53]} 26. Rd6 {[%emt 0:03:10]} Be7 {[%emt 0:02:55]} 27. Rxc6 {[%emt 0:00:10]} Kf7 {[%emt 0:00:54]} 28. Rd1 {[%emt 0:02:24]} f4 {[%emt 0:03:14]} 29. Nd7 {[%emt 0:02:45]} Bb7 {[%emt 0:04:04]} 30. Nxe5+ {[%emt 0:00:34]} Ke8 {[%emt 0:00:06]} 31. Rc7 {[%emt 0:01:30]} Bc8 {[%emt 0:01:23]} 32. Nc6 {[%emt 0:03:07]} Bf6 {[%emt 0:00:15]} 33. Rd6 {[%emt 0:02:03]} Bg5 {[%emt 0:00:20]} 34. Rxh7 {[%emt 0:00:10]} 1-0